fUST/lending_fUST_20250302
["ID","MTS","AMOUNT","RATE_DAILY","PERIOD"]
[355106375,1740897054243,-151.0,0.00024658,7]
[355106376,1740897054253,-151.0,0.00024658,7]
[355106377,1740897054263,-151.0,0.00024658,7]
[355106378,1740897054274,-151.0,0.00024658,7]
[355106379,1740897054284,-151.0,0.00024658,7]
[355106380,1740897054295,-151.0,0.00024658,7]
[355106381,1740897054305,-151.0,0.00024658,7]
[355106382,1740897054316,-151.0,0.00024658,7]
[355106383,1740897054326,-151.0,0.00024658,7]
[355106384,1740897054338,-151.0,0.00024658,7]
[355106385,1740897054349,-151.0,0.00024658,7]
[355106386,1740897054359,-346.612221,0.00024658,7]
[355106387,1740897054369,-346.612221,0.00024658,7]
[355106388,1740897054380,-151.0,0.00024658,7]
[355106389,1740897054391,-151.0,0.00024658,7]
[355106390,1740897054401,-151.0,0.00024658,7]
[355106391,1740897054412,-151.0,0.00024658,7]
[355106392,1740897054632,-151.0,0.00024658,7]
[355106393,1740897054645,-160.0,0.00024658,7]
[355106394,1740897054659,-151.0,0.00024658,7]
[355106395,1740897054669,-19629.85965445,0.00024658,7]
[355106396,1740897054679,-3041.166859,0.00024658,2]
[355106397,1740897054692,-500.0,0.00024658,2]
[355106398,1740897054704,-3041.166859,0.00024658,2]
[355106399,1740897054713,-500.0,0.00024658,2]
[355106400,1740897054723,-3041.166859,0.00024658,2]
[355106401,1740897054733,-500.0,0.00024658,2]
[355106402,1740897054742,-3041.166859,0.00024658,2]
[355106403,1740897054752,-500.0,0.00024658,2]
[355106404,1740897054763,-500.0,0.00024658,2]
[355106405,1740897054773,-3041.166859,0.00024658,2]
[355106406,1740897054785,-500.0,0.00024658,2]
[355106407,1740897054795,-3041.166859,0.00024658,2]
[355106408,1740897054805,-500.0,0.00024658,2]
[355106409,1740897054816,-500.0,0.00024658,2]
[355106410,1740897054827,-3041.166859,0.00024658,2]
[355106411,1740897054837,-500.0,0.00024658,2]
[355106412,1740897054847,-500.0,0.00024658,2]
[355106413,1740897054858,-3041.166859,0.00024658,2]
[355106414,1740897054868,-500.0,0.00024658,2]
[355106415,1740897054878,-3041.166859,0.00024658,2]
[355106416,1740897054889,-500.0,0.00024658,2]
[355106417,1740897054900,-3041.166859,0.00024658,2]
[355106418,1740897054912,-500.0,0.00024658,2]
[355106419,1740897054923,-3041.166859,0.00024658,2]
[355106420,1740897054933,-500.0,0.00024658,2]
[355106421,1740897054943,-3041.166859,0.00024658,2]
[355106422,1740897054954,-500.0,0.00024658,2]
[355106423,1740897054964,-3041.166859,0.00024658,2]
[355106424,1740897054974,-413.79630745,0.00024658,2]
[355106425,1740897054985,-3041.166859,0.00024658,2]
[355106426,1740897054995,-500.0,0.00024658,2]
[355106427,1740897055005,-3041.166859,0.00024658,2]
[355106428,1740897055016,-3041.166859,0.00024658,2]
[355106429,1740897055027,-3041.166859,0.00024658,2]
[355106430,1740897055038,-3041.166859,0.00024658,2]
[355106431,1740897055049,-3041.166859,0.00024658,2]
[355106432,1740897055060,-3041.166859,0.00024658,2]
[355106433,1740897055071,-3041.166859,0.00024658,2]
[355106434,1740897055082,-3041.166859,0.00024658,2]
[355106435,1740897055093,-3041.166859,0.00024658,2]
[355106436,1740897055104,-3041.166859,0.00024658,2]
[355106437,1740897055116,-3041.166859,0.00024658,2]
[355106438,1740897055127,-3041.166859,0.00024658,2]
[355106439,1740897055138,-3041.166859,0.00024658,2]
[355106440,1740897055149,-3041.166859,0.00024658,2]
[355106441,1740897055161,-3041.166859,0.00024658,2]
[355106442,1740897055172,-3041.166859,0.00024658,2]
[355106443,1740897055183,-3041.166859,0.00024658,2]
[355106444,1740897055195,-3041.166859,0.00024658,2]
[355106445,1740897055206,-3041.166859,0.00024658,2]
[355106446,1740897055217,-3041.166859,0.00024658,2]
[355106447,1740897055227,-3041.166859,0.00024658,2]
[355106448,1740897055238,-3041.166859,0.00024658,2]
[355106449,1740897055249,-3041.166859,0.00024658,2]
[355106450,1740897055260,-3041.166859,0.00024658,2]
[355106451,1740897055271,-3041.166859,0.00024658,2]
[355106452,1740897055282,-3041.166859,0.00024658,2]
[355106453,1740897055293,-151.0,0.00024658,7]
[355106454,1740897055303,-182.2,0.000247,7]
[355106455,1740897055314,-500.0,0.00024738,2]
[355106456,1740897055325,-500.0,0.00024738,2]
[355106457,1740897055336,-500.0,0.00024738,2]
[355106458,1740897055346,-500.0,0.00024738,2]
[355106459,1740897055356,-500.0,0.00024738,2]
[355106460,1740897055367,-356.92,0.00024738,2]
[355106461,1740897055378,-500.0,0.00024738,2]
[355106462,1740897055389,-500.0,0.00024738,2]
[355106463,1740897055399,-500.0,0.00024738,2]
[355106464,1740897055411,-500.0,0.00024738,2]
[355106465,1740897055422,-500.0,0.00024738,2]
[355106466,1740897055432,-500.0,0.00024738,2]
[355106467,1740897055442,-500.0,0.00024738,2]
[355106468,1740897055453,-2602.57,0.00024738,2]
[355106469,1740897055464,-2177.79,0.00024738,2]
[355106470,1740897055475,-616.35,0.00024738,2]
[355106471,1740897055486,-50625.72,0.00024738,2]
[355106472,1740897055497,-2770.77,0.00024738,2]
[355106473,1740897055507,-500.0,0.00024738,2]
[355106474,1740897055518,-1033.66,0.00024738,2]
[355106475,1740897055528,-500.0,0.00024738,2]
[355106476,1740897055538,-1061.33,0.00024738,2]
[355106477,1740897055549,-500.0,0.00024738,2]
[355106478,1740897055560,-570.36,0.00024738,2]
[355106479,1740897055571,-2343.12,0.00024738,2]
[355106480,1740897055581,-188.21225442,0.00024738,2]
[355106481,1740897055788,-311.78774558,0.00024738,2]
[355106482,1740897055798,-500.0,0.00024738,2]
[355106483,1740897055808,-1559.77,0.00024738,2]
[355106484,1740897055819,-5186.82,0.00024738,2]
[355106485,1740897055829,-570.7,0.00024738,2]
[355106486,1740897055839,-2849.98,0.00024738,2]
[355106487,1740897055850,-500.0,0.00024738,2]
[355106488,1740897055860,-633.27,0.00024738,2]
[355106489,1740897055869,-1105.48,0.00024738,2]
[355106490,1740897055880,-500.0,0.00024738,2]
[355106491,1740897055891,-500.0,0.00024738,2]
[355106492,1740897055901,-500.0,0.00024738,2]
[355106493,1740897055912,-748.07,0.00024738,2]
[355106494,1740897055923,-232.284334,0.00024738,7]
[355106495,1740897055935,-500.0,0.00024738,2]
[355106496,1740897055945,-3133.23,0.00024738,2]
[355106497,1740897055956,-4292.74,0.00024738,2]
[355106498,1740897055967,-803.1,0.00024738,2]
[355106499,1740897055978,-1449.57,0.00024738,2]
[355106500,1740897055988,-500.0,0.00024738,2]
[355106501,1740897055999,-500.0,0.00024738,2]
[355106502,1740897056009,-500.0,0.00024738,2]
[355106503,1740897056019,-819.74,0.00024738,2]
[355106504,1740897056030,-1319.12,0.00024738,2]
[355106505,1740897056040,-500.0,0.00024738,2]
[355106506,1740897056051,-172.401256,0.00024738,7]
[355106507,1740897056060,-624.6,0.00024739,2]
[355106508,1740897056071,-202.71734123,0.00024739,2]
[355106509,1740897056082,-500.0,0.00024739,2]
[355106510,1740897056092,-1279.94,0.00024739,2]
[355106511,1740897056102,-500.0,0.00024739,2]
[355106512,1740897056112,-3000.0,0.0002478,7]
[355106513,1740897056122,-3196.83,0.00024891,2]
[355106514,1740897056132,-1582.11,0.00024891,2]
[355106515,1740897056142,-493.18,0.00024891,2]
[355106516,1740897056152,-500.0,0.00024891,2]
[355106517,1740897056163,-604.73,0.00024891,2]
[355106518,1740897056174,-593.2,0.00024891,2]
[355106519,1740897056184,-605.8,0.00024891,2]
[355106520,1740897056195,-2021.42,0.00024891,2]
[355106521,1740897056205,-3510.35,0.00024891,2]
[355106522,1740897056215,-500.0,0.00024891,2]
[355106523,1740897056226,-921.7,0.00024891,2]
[355106524,1740897056236,-4905.85,0.00024891,2]
[355106525,1740897056247,-500.0,0.00024917,2]
[355106526,1740897056257,-500.0,0.00024917,2]
[355106527,1740897056268,-500.0,0.00024917,2]
[355106528,1740897056279,-500.0,0.00024917,2]
[355106529,1740897056290,-500.0,0.00024917,2]
[355106530,1740897056301,-500.0,0.00024917,2]
[355106531,1740897056311,-500.0,0.00024917,2]
[355106532,1740897056322,-390.0,0.00024932,2]
[355106533,1740897056333,-500.0,0.00024973,2]
[355106534,1740897056507,-701.42744445,0.00025,2]
[355106535,1740897056527,-4000.02,0.00025,2]
[355106536,1740897056542,-151.0,0.00025,7]
[355106537,1740897056551,-151.0,0.00025,7]
[355106538,1740897056561,-4740.0,0.00025,2]
[355106539,1740897056571,-151.0,0.00025,7]
[355106540,1740897056580,-151.0,0.00025,7]
[355106541,1740897056590,-151.0,0.00025,7]
[355106542,1740897056600,-390.0,0.00025,2]
[355106543,1740897056610,-151.0,0.00025,7]
[355106544,1740897056622,-151.0,0.00025,7]
[355106545,1740897056632,-160.0,0.00025,7]
[355106546,1740897056642,-151.0,0.00025,7]
[355106547,1740897056652,-56404.60354043,0.00025,2]
[355106548,1740897056666,-522.63734845,0.00025,2]
[355106549,1740897057291,-500.0,0.00022546,2]
[355106550,1740897057300,-500.0,0.00022546,2]
[355106551,1740897057310,-500.0,0.00022546,2]
[355106552,1740897057320,-500.0,0.00022546,2]
[355106553,1740897057330,-508.39488865,0.0002282,2]
[355106554,1740897057340,-500.0,0.0002282,2]
[355106555,1740897057351,-638.24,0.0002282,2]
[355106556,1740897057360,-500.0,0.00023094,2]
[355106557,1740897057370,-980.47,0.0002419,2]
[355106558,1740897057379,-980.47,0.00024464,2]
[355106559,1740897057388,-980.47,0.00024738,2]
[355106560,1740897057398,-24469.47461187,0.00025,2]
[355106561,1740897057755,-500.0,0.00022546,2]
[355106562,1740897057767,-500.0,0.00022546,2]
[355106563,1740897057778,-232.93293388,0.00022546,2]
[355106564,1740897057934,-277.65035617,0.00022546,2]
[355106565,1740897057944,-507.41112716,0.00022546,2]
[355106566,1740897057954,-500.0,0.00022699,2]
[355106567,1740897057965,-500.0,0.0002282,2]
[355106568,1740897057975,-500.0,0.0002282,2]
[355106569,1740897057986,-500.0,0.00022973,2]
[355106570,1740897057996,-259.33630605,0.00022999,2]
[355106571,1740897291327,10000.0,0.0002,10]
[355106573,1740897764186,-190.947695,0.00021666,2]
[355106574,1740897945146,-234.03912888,0.00022445,2]
[355106582,1740898027088,-1417.02327969,0.000189,2]
[355106583,1740898027116,-2974.9515862,0.00021545,2]
[355106584,1740898027145,-332.89637552,0.00022445,2]
[355106585,1740898028087,-254.33360288,0.00022445,2]
[355106586,1740898040134,-181.26457474,0.00022445,2]
[355106587,1740898047094,-70.42109055,0.00022445,2]
[355106588,1740898047119,-145.31238705,0.00022535,3]
[355106594,1740898160347,203.15223549,0.00022,30]
[355106595,1740898160372,796.84776451,0.00022,30]
[355106654,1740898232168,-151.32038255,0.000225,2]
[355106657,1740898232178,-602.94,0.00022535,3]
[355106659,1740898232188,-214.61,0.00022535,3]
[355106660,1740898232198,-643.86,0.00022535,3]
[355106662,1740898232208,-155.378756,0.0002254,10]
[355106664,1740898232218,-300.0,0.00022543,2]
[355106665,1740898232228,-635.7334859,0.00022544,2]
[355106666,1740898232238,-500.0,0.00022544,2]
[355106667,1740898232248,-160.83337409,0.00022544,2]
[355106668,1740898232257,-2961.84,0.00022544,2]
[355106669,1740898232267,-1457.25,0.00022544,2]
[355106670,1740898232278,-1000.0,0.00022544,5]
[355106671,1740898232288,-500.0,0.00022544,2]
[355106672,1740898232298,-500.0,0.00022544,2]
[355106673,1740898232308,-500.0,0.00022544,2]
[355106674,1740898232317,-624.35,0.00022544,2]
[355106675,1740898232328,-500.0,0.00022544,2]
[355106676,1740898232337,-1820.68,0.00022544,2]
[355106677,1740898232346,-500.0,0.00022544,2]
[355106678,1740898232356,-173.57,0.00022545,2]
[355106679,1740898232365,-500.0,0.00022545,2]
[355106680,1740898232375,-500.0,0.00022545,2]
[355106681,1740898232384,-500.0,0.00022545,2]
[355106682,1740898232394,-500.0,0.00022545,2]
[355106683,1740898232403,-500.0,0.00022545,2]
[355106684,1740898232413,-500.0,0.00022545,2]
[355106685,1740898232423,-500.0,0.00022545,2]
[355106686,1740898232432,-500.0,0.00022545,2]
[355106687,1740898232442,-500.0,0.00022545,2]
[355106688,1740898232452,-500.0,0.00022545,2]
[355106689,1740898232678,-500.0,0.00022545,2]
[355106690,1740898232690,-79.95951552,0.00022545,2]
[355106691,1740898232702,-373.65136532,0.00022545,2]
[355106726,1740898237991,-46.38911916,0.00022545,2]
[355106728,1740898238003,-500.0,0.00022545,2]
[355106730,1740898238012,-500.0,0.00022545,2]
[355106732,1740898238021,-500.0,0.00022545,2]
[355106734,1740898238031,-500.0,0.00022545,2]
[355106736,1740898238041,-500.0,0.00022545,2]
[355106738,1740898238051,-500.0,0.00022545,2]
[355106740,1740898238064,-500.0,0.00022545,2]
[355106742,1740898238074,-500.0,0.00022545,2]
[355106744,1740898238084,-500.0,0.00022545,2]
[355106746,1740898238095,-500.0,0.00022545,2]
[355106748,1740898238104,-593.96,0.00022545,2]
[355106750,1740898238113,-500.0,0.00022545,2]
[355106752,1740898238123,-500.0,0.00022545,2]
[355106755,1740898238134,-503.34,0.00022545,2]
[355106758,1740898238143,-93.17576198,0.00022545,2]
[355106763,1740898238159,-406.82423802,0.00022545,2]
[355106766,1740898238169,-500.0,0.00022545,2]
[355106769,1740898238178,-500.0,0.00022545,2]
[355106772,1740898238188,-500.0,0.00022545,2]
[355106775,1740898238197,-500.0,0.00022545,2]
[355106778,1740898238207,-500.0,0.00022545,2]
[355106781,1740898238216,-500.0,0.00022545,2]
[355106784,1740898238226,-500.0,0.00022545,2]
[355106787,1740898238235,-500.0,0.00022545,2]
[355106790,1740898238245,-502.94324348,0.00022545,2]
[355106791,1740898238255,-500.0,0.00022545,2]
[355106793,1740898238264,-500.0,0.00022545,2]
[355106796,1740898238274,-500.0,0.00022545,2]
[355106798,1740898238284,-500.0,0.00022545,2]
[355106800,1740898238294,-508.46475126,0.00022545,2]
[355106801,1740898238303,-500.0,0.00022545,2]
[355106804,1740898238313,-500.0,0.00022545,2]
[355106806,1740898238323,-500.0,0.00022545,2]
[355106807,1740898238333,-500.0,0.00022545,2]
[355106810,1740898238343,-500.0,0.00022545,2]
[355106812,1740898238353,-500.0,0.00022545,2]
[355106814,1740898238363,-500.0,0.00022545,2]
[355106816,1740898238372,-500.0,0.00022545,2]
[355106818,1740898238382,-500.0,0.00022545,2]
[355106820,1740898238392,-500.0,0.00022545,2]
[355106822,1740898238401,-500.0,0.00022545,2]
[355106824,1740898238411,-500.0,0.00022545,2]
[355106826,1740898238420,-500.0,0.00022545,2]
[355106828,1740898238429,-500.0,0.00022545,2]
[355106830,1740898238439,-500.0,0.00022545,2]
[355106832,1740898238448,-500.0,0.00022545,2]
[355106834,1740898238459,-500.0,0.00022545,2]
[355106836,1740898238469,-500.0,0.00022545,2]
[355106838,1740898238478,-500.0,0.00022545,2]
[355106840,1740898238488,-505.54091061,0.00022545,2]
[355106842,1740898238498,-500.0,0.00022545,2]
[355106844,1740898238508,-500.0,0.00022545,2]
[355106846,1740898238517,-500.0,0.00022545,2]
[355106848,1740898238528,-500.0,0.00022545,2]
[355106850,1740898238538,-500.0,0.00022545,2]
[355106852,1740898238547,-500.0,0.00022545,2]
[355106854,1740898238560,-500.0,0.00022545,2]
[355106856,1740898238569,-500.0,0.00022545,2]
[355106858,1740898238580,-500.0,0.00022545,2]
[355106860,1740898238591,-500.0,0.00022545,2]
[355106862,1740898238601,-505.1587973,0.00022545,2]
[355106864,1740898238610,-500.0,0.00022545,2]
[355106866,1740898238619,-500.0,0.00022545,2]
[355106868,1740898238630,-4590.2,0.00022545,2]
[355106870,1740898238640,-269.19162867,0.00022545,2]
[355106872,1740898238650,-500.0,0.00022545,2]
[355106874,1740898238660,-500.0,0.00022545,2]
[355106876,1740898238669,-834.08,0.00022545,2]
[355106879,1740898238680,-512.28126613,0.00022545,2]
[355106881,1740898238689,-316.67194844,0.00022545,2]
[355106883,1740898238699,-500.0,0.00022545,2]
[355106885,1740898238709,-500.0,0.00022545,2]
[355106887,1740898238719,-500.0,0.00022545,2]
[355106889,1740898238728,-500.0,0.00022545,2]
[355106891,1740898238738,-500.0,0.00022545,2]
[355106893,1740898238747,-2471.2,0.00022545,2]
[355106895,1740898238757,-500.0,0.00022545,2]
[355106896,1740898238766,-502.70753774,0.00022545,2]
[355106899,1740898238776,-500.0,0.00022545,2]
[355106901,1740898238786,-500.0,0.00022545,2]
[355106902,1740898238795,-508.17450773,0.00022545,2]
[355106904,1740898238804,-50028.47,0.00022545,2]
[355106906,1740898238814,-500.0,0.00022545,2]
[355106909,1740898238823,-500.0,0.00022545,2]
[355106910,1740898238833,-2097.83,0.00022545,2]
[355106912,1740898238842,-500.0,0.00022545,2]
[355106915,1740898238852,-200.0,0.00022545,2]
[355106917,1740898238861,-500.0,0.00022545,2]
[355106919,1740898238871,-500.0,0.00022545,2]
[355106921,1740898238880,-500.0,0.00022545,2]
[355106922,1740898238889,-500.0,0.00022545,2]
[355106925,1740898238899,-450.0,0.00022545,2]
[355106926,1740898238908,-500.0,0.00022545,2]
[355106929,1740898238918,-500.0,0.00022545,2]
[355106931,1740898238928,-500.0,0.00022545,2]
[355106933,1740898238937,-500.0,0.00022545,2]
[355106935,1740898238946,-638.62,0.00022545,2]
[355106937,1740898238955,-989.3,0.00022545,2]
[355106939,1740898238965,-500.0,0.00022545,2]
[355106941,1740898238974,-500.0,0.00022545,2]
[355106942,1740898238983,-500.0,0.00022545,2]
[355106945,1740898238993,-500.0,0.00022545,2]
[355106946,1740898239003,-500.0,0.00022545,2]
[355106948,1740898239012,-500.0,0.00022545,2]
[355106950,1740898239021,-505.75719112,0.00022545,2]
[355106952,1740898239030,-500.0,0.00022545,2]
[355106954,1740898239041,-500.0,0.00022545,2]
[355106956,1740898239051,-500.0,0.00022545,2]
[355106957,1740898239065,-500.0,0.00022545,2]
[355106958,1740898239074,-500.0,0.00022545,2]
[355106960,1740898239084,-500.0,0.00022545,2]
[355106962,1740898239095,-603.23,0.00022545,2]
[355106963,1740898239104,-500.0,0.00022545,2]
[355106965,1740898239114,-500.0,0.00022545,2]
[355106967,1740898239123,-219.63500113,0.00022545,2]
[355106969,1740898239134,-500.0,0.00022545,2]
[355106971,1740898239144,-500.0,0.00022545,2]
[355106973,1740898239153,-500.0,0.00022545,2]
[355106974,1740898239164,-500.0,0.00022545,2]
[355106975,1740898239173,-1020.01,0.00022545,2]
[355106976,1740898239183,-500.0,0.00022545,2]
[355106977,1740898239193,-500.0,0.00022545,2]
[355106978,1740898239204,-500.0,0.00022545,2]
[355106979,1740898239213,-500.0,0.00022545,2]
[355106980,1740898239223,-1481.77,0.00022545,2]
[355106981,1740898239233,-500.0,0.00022545,2]
[355106982,1740898239243,-500.0,0.00022545,2]
[355106983,1740898239253,-2266.25,0.00022545,2]
[355106984,1740898239263,-500.0,0.00022545,2]
[355106985,1740898239272,-500.0,0.00022545,2]
[355106986,1740898239282,-500.0,0.00022545,2]
[355106987,1740898239291,-500.0,0.00022545,2]
[355106988,1740898239300,-500.0,0.00022545,2]
[355106989,1740898239309,-500.0,0.00022545,2]
[355106990,1740898239319,-231.24429553,0.00022545,2]
[355106991,1740898239328,-500.0,0.00022545,2]
[355106992,1740898239337,-500.0,0.00022545,2]
[355106993,1740898239347,-500.0,0.00022545,2]
[355106994,1740898239357,-4676.24,0.00022545,2]
[355106995,1740898239366,-500.0,0.00022545,2]
[355106996,1740898239376,-500.0,0.00022545,2]
[355106997,1740898239385,-500.0,0.00022545,2]
[355106998,1740898239394,-500.0,0.00022545,2]
[355106999,1740898239404,-500.57710818,0.00022545,2]
[355107000,1740898239414,-500.0,0.00022545,2]
[355107001,1740898239424,-500.0,0.00022545,2]
[355107002,1740898239434,-500.0,0.00022545,2]
[355107003,1740898239443,-500.0,0.00022545,2]
[355107005,1740898239453,-500.0,0.00022545,2]
[355107006,1740898239462,-2450.95,0.00022545,2]
[355107007,1740898239472,-500.0,0.00022545,2]
[355107008,1740898239482,-500.0,0.00022545,2]
[355107009,1740898239491,-500.0,0.00022545,2]
[355107010,1740898239502,-500.0,0.00022545,2]
[355107011,1740898239511,-500.0,0.00022545,2]
[355107012,1740898239521,-500.0,0.00022545,2]
[355107013,1740898239530,-500.0,0.00022545,2]
[355107014,1740898239539,-500.0,0.00022545,2]
[355107015,1740898239549,-500.0,0.00022545,2]
[355107016,1740898239558,-500.0,0.00022545,2]
[355107017,1740898239567,-500.0,0.00022545,2]
[355107018,1740898239577,-500.0,0.00022545,2]
[355107019,1740898239586,-500.0,0.00022545,2]
[355107020,1740898239596,-500.0,0.00022545,2]
[355107021,1740898239606,-500.0,0.00022545,2]
[355107022,1740898239615,-500.0,0.00022545,2]
[355107023,1740898239625,-500.0,0.00022545,2]
[355107024,1740898239635,-500.0,0.00022545,2]
[355107025,1740898239645,-500.0,0.00022545,2]
[355107026,1740898239655,-500.0,0.00022545,2]
[355107027,1740898239664,-608.01,0.00022545,2]
[355107028,1740898239674,-604.01264542,0.00022545,2]
[355107029,1740898239683,-500.0,0.00022545,2]
[355107030,1740898239693,-500.0,0.00022545,2]
[355107031,1740898239702,-500.0,0.00022545,2]
[355107032,1740898239714,-500.0,0.00022545,2]
[355107033,1740898239723,-1024.84,0.00022545,2]
[355107034,1740898239733,-500.0,0.00022545,2]
[355107035,1740898239742,-500.0,0.00022545,2]
[355107037,1740898239753,-500.0,0.00022545,2]
[355107039,1740898239763,-500.0,0.00022545,2]
[355107040,1740898239773,-500.0,0.00022545,2]
[355107041,1740898239782,-500.0,0.00022545,2]
[355107042,1740898239791,-500.0,0.00022545,2]
[355107043,1740898239801,-500.0,0.00022545,2]
[355107045,1740898239810,-500.0,0.00022545,2]
[355107046,1740898239820,-500.0,0.00022545,2]
[355107047,1740898239830,-500.0,0.00022545,2]
[355107048,1740898239839,-500.0,0.00022545,2]
[355107049,1740898239849,-562.39,0.00022545,2]
[355107050,1740898239858,-500.0,0.00022545,2]
[355107051,1740898239868,-500.0,0.00022545,2]
[355107052,1740898239877,-500.0,0.00022545,2]
[355107053,1740898239887,-500.0,0.00022545,2]
[355107054,1740898239897,-500.0,0.00022545,2]
[355107055,1740898239906,-500.0,0.00022545,2]
[355107056,1740898239916,-500.0,0.00022545,2]
[355107057,1740898239926,-500.0,0.00022545,2]
[355107058,1740898239936,-500.0,0.00022545,2]
[355107059,1740898239946,-500.0,0.00022545,2]
[355107060,1740898239956,-699.72,0.00022545,2]
[355107061,1740898239966,-500.0,0.00022545,2]
[355107062,1740898239976,-500.0,0.00022545,2]
[355107063,1740898239985,-500.0,0.00022545,2]
[355107064,1740898239996,-500.0,0.00022545,2]
[355107065,1740898240006,-756.69,0.00022545,2]
[355107066,1740898240015,-500.0,0.00022545,2]
[355107068,1740898240025,-500.0,0.00022545,2]
[355107070,1740898240035,-368.66736109,0.00022545,2]
[355107071,1740898240044,-500.0,0.00022545,2]
[355107072,1740898240057,-500.0,0.00022545,2]
[355107073,1740898240067,-500.0,0.00022545,2]
[355107074,1740898240076,-500.0,0.00022545,2]
[355107075,1740898240086,-500.0,0.00022545,2]
[355107077,1740898240097,-500.0,0.00022545,2]
[355107078,1740898240107,-500.0,0.00022545,2]
[355107079,1740898240117,-500.0,0.00022545,2]
[355107080,1740898240128,-500.0,0.00022545,2]
[355107081,1740898240140,-500.0,0.00022545,2]
[355107082,1740898240150,-500.0,0.00022545,2]
[355107083,1740898240161,-3856.95,0.00022545,2]
[355107084,1740898240170,-783.23,0.00022545,2]
[355107085,1740898240180,-500.0,0.00022545,2]
[355107086,1740898240191,-2945.01,0.00022545,2]
[355107087,1740898240200,-500.0,0.00022545,2]
[355107088,1740898240210,-507.82981816,0.00022545,2]
[355107089,1740898240221,-500.0,0.00022545,2]
[355107090,1740898240231,-500.0,0.00022545,2]
[355107091,1740898240241,-500.0,0.00022545,2]
[355107092,1740898240254,-500.0,0.00022545,2]
[355107093,1740898240264,-500.0,0.00022545,2]
[355107094,1740898240273,-1366.06,0.00022545,2]
[355107095,1740898240283,-420.67269332,0.00022545,2]
[355107096,1740898240293,-500.0,0.00022545,2]
[355107097,1740898240303,-500.0,0.00022545,2]
[355107098,1740898240313,-3056.88,0.00022545,2]
[355107099,1740898240323,-500.0,0.00022545,2]
[355107100,1740898240334,-500.0,0.00022545,2]
[355107102,1740898240344,-500.0,0.00022545,2]
[355107103,1740898240354,-500.0,0.00022545,2]
[355107104,1740898240365,-500.0,0.00022545,2]
[355107105,1740898240375,-500.0,0.00022545,2]
[355107106,1740898240385,-500.0,0.00022545,2]
[355107107,1740898240394,-500.0,0.00022545,2]
[355107108,1740898240404,-500.0,0.00022545,2]
[355107109,1740898240414,-500.0,0.00022545,2]
[355107110,1740898240423,-500.0,0.00022545,2]
[355107111,1740898240433,-500.0,0.00022545,2]
[355107112,1740898240443,-500.0,0.00022545,2]
[355107113,1740898240454,-500.0,0.00022545,2]
[355107114,1740898240464,-500.0,0.00022545,2]
[355107115,1740898240474,-792.17,0.00022545,2]
[355107116,1740898240484,-500.0,0.00022545,2]
[355107117,1740898240494,-500.0,0.00022545,2]
[355107118,1740898240504,-500.0,0.00022545,2]
[355107119,1740898240514,-1194.41,0.00022545,2]
[355107120,1740898240523,-500.0,0.00022545,2]
[355107121,1740898240533,-500.0,0.00022545,2]